bitfinex-derivatives/quotes_ETHF0:USTF0_20251008
["timestamp","ask_amount","ask_price","bid_price","bid_amount"]
[1759956968558,1.13404,4511.0,4510.9,1.15775]
[1759956972357,1.13404,4511.0,4510.9,0.7588]
[1759956972555,1.26584,4511.0,4510.9,0.227]
[1759956973060,0.82735,4510.9,4510.8,1.19308562]
[1759956973265,0.1318,4511.0,4510.5,1.81653111]
[1759956973266,1.14427,4510.6,4510.5,1.81653111]
[1759956973958,1.14427,4510.6,4510.5,2.14343111]
[1759956975362,1.14427,4510.6,4510.5,0.95034549]
[1759956975557,1.14427,4510.6,4510.5,1.15794549]
[1759956978855,0.7453,4510.6,4510.5,1.15794549]
[1759956979361,1.14427,4510.6,4510.5,1.15794549]
[1759956981054,1.14427,4510.6,4510.5,0.22446549]
[1759956981257,1.14427,4510.6,4510.5,0.75896549]
[1759956981452,1.14427,4510.6,4510.5,0.43206549]
[1759956981765,1.14427,4510.6,4510.5,0.22446549]
[1759956981956,1.14427,4510.6,4510.5,0.00216549]
[1759956982162,8.98606129,4510.6,4510.5,0.00216549]
[1759956982363,9.46881192,4510.6,4510.5,0.00216549]
[1759956982757,1.14432,4510.1,4510.0,3.2078]
[1759956982962,2.39511528,4510.1,4510.0,3.2078]
[1759956983164,5.22123739,4510.1,4510.0,3.2078]
[1759956983463,1.27617,4509.5,4509.4,3.4301]
[1759956983763,1.27617,4509.5,4509.4,3.43278537]
[1759956983959,0.8771,4509.5,4509.4,3.96728537]
[1759956984554,0.5359,4509.5,4509.4,3.96728537]
[1759956984868,0.3169,4509.5,4509.4,3.96728537]
[1759956986864,0.442,4509.8,4509.7,0.2223]
[1759956987168,0.3169,4509.8,4509.7,0.7568]
[1759956987465,0.5359,4509.8,4509.7,0.7568]
[1759956988064,0.219,4510.3,4510.2,0.2223]
[1759956988367,0.9683,4510.3,4510.2,0.7568]
[1759956988667,0.7453,4510.3,4510.2,0.7568]
[1759956988968,0.3169,4510.3,4510.2,0.7568]
[1759956990565,3.2078,4510.6,4510.3,0.3269]
[1759956990866,3.9667,4510.6,4510.5,0.7568]
[1759956991260,4.1761,4510.6,4510.5,0.7568]
[1759956991871,0.7589,4510.6,4510.5,0.7568]
[1759956992864,0.5359,4510.6,4510.5,0.7568]
[1759956998674,0.3169,4510.6,4510.5,0.7568]
[1759956999174,0.3169,4510.6,4510.5,1.15578]
[1759956999470,3.2078,4511.1,4510.7,1.14717]
[1759956999667,3.2078,4511.1,4510.9,1.14715]
[1759956999668,1.27084,4511.0,4510.9,1.14715]
[1759957003470,1.14354,4511.0,4510.9,1.14715]
[1759957003680,0.93784,4511.0,4510.9,1.14715]
[1759957003973,1.28464,4511.0,4510.9,1.14715]
[1759957008273,3.2078,4511.3,4510.9,1.14715]
[1759957008478,1.36722,4511.2,4511.1,0.7826]
[1759957008875,1.36722,4511.2,4511.1,0.4461]
[1759957009275,1.36722,4511.2,4511.1,0.2249]
[1759957015776,1.14525,4510.9,4510.8,0.5614]
[1759957015979,1.36725,4510.9,4510.8,0.5614]
[1759957016171,1.14527,4510.8,4510.7,0.62386]
[1759957016374,1.14527,4510.8,4510.7,1.18156]
[1759957016578,1.36727,4510.8,4510.7,1.18156]
[1759957016981,1.14527,4510.8,4510.7,1.18156]
[1759957017281,1.36727,4510.8,4510.7,1.18156]
[1759957019780,1.36727,4510.8,4510.7,0.96036]
[1759957019973,1.36727,4510.8,4510.7,1.18156]
[1759957022280,1.14527,4510.8,4510.7,1.18156]
[1759957022583,0.93474,4511.0,4510.9,1.18155]
[1759957022884,1.15674,4511.0,4510.9,1.18155]
[1759957023085,1.36724,4511.0,4510.9,1.18155]
[1759957023783,1.50354,4511.0,4510.9,1.18155]
[1759957025378,1.36724,4511.0,4510.9,1.18155]
[1759957028490,1.36724,4511.0,4510.9,1.18155]
[1759957029291,1.50084,4511.0,4510.9,1.18155]
[1759957029488,3.2078,4511.3,4511.2,0.39892]
[1759957029688,1.29789,4511.5,4511.4,0.4409]
[1759957029993,2.00263738,4511.5,4511.4,0.4409]
[1759957030186,1.51989,4511.5,4511.4,0.7733]
[1759957033487,1.51989,4511.5,4511.4,0.4409]
[1759957033891,1.38629,4511.5,4511.4,0.7733]
[1759957034093,0.94599,4511.5,4511.4,1.1722]
[1759957034290,0.94599,4511.5,4511.4,0.7733]
[1759957034687,1.16429,4511.5,4511.4,0.7733]
[1759957035994,1.29789,4511.5,4511.4,0.7733]
[1759957037197,1.29789,4511.5,4511.4,0.2247]
[1759957040497,1.29789,4511.5,4511.4,0.4453]
[1759957040703,0.39898,4510.5,4510.4,0.3259]
[1759957040991,1.30468,4510.5,4510.4,0.5314]
[1759957041193,1.30468,4510.5,4510.4,0.752]
[1759957041599,0.399,4510.3,4510.2,4.80163559]
[1759957041895,0.9593,4510.3,4510.2,2.34583559]
[1759957042488,0.9593,4510.3,4510.2,0.752]
[1759957043899,1.1722,4510.3,4510.2,0.752]
[1759957045298,1.1722,4510.3,4510.2,1.15101]
[1759957047800,1.1722,4510.3,4510.2,0.4261]
[1759957048001,1.1722,4510.3,4510.2,0.752]
[1759957050098,1.1722,4510.3,4510.2,1.15101]
[1759957051001,1.1722,4510.3,4510.2,0.2055]
[1759957051297,0.7732,4510.2,4510.1,3.81232]
[1759957051505,0.7732,4510.2,4510.1,4.35882]
[1759957052904,0.7732,4510.2,4510.1,3.9598]
[1759957054707,0.7732,4509.9,4509.8,0.752]
[1759957054900,0.7732,4509.9,4509.8,0.974]
[1759957055212,0.3384,4509.9,4509.8,0.974]
[1759957055506,0.8338,4510.3,4510.2,0.752]
[1759957055906,1.1722,4510.3,4510.2,0.4261]
[1759957056095,1.1722,4510.3,4510.2,0.2055]
[1759957056298,1.17222,4510.1,4510.0,0.4275]
[1759957056499,1.17222,4510.1,4510.0,0.974]
[1759957056706,0.95932,4510.1,4510.0,0.974]
[1759957058007,1.17222,4510.1,4510.0,0.974]
[1759957058409,0.1325,4510.5,4509.6,4.39683355]
[1759957058410,0.4348,4509.9,4509.8,0.82514]
[1759957058613,0.5484,4509.9,4509.8,1.15144]
[1759957059006,0.72554,4509.8,4509.6,3.2078]
[1759957059311,0.7673,4509.7,4509.6,3.4246]
[1759957059921,0.7673,4509.7,4509.6,3.7509]
[1759957061315,0.7673,4509.7,4509.6,3.9626]
[1759957061718,0.6724,4510.0,4509.9,0.7548]
[1759957062009,0.8919,4510.0,4509.9,0.7548]
[1759957062209,0.8919,4510.0,4509.9,0.4285]
[1759957062415,0.8919,4510.0,4509.9,0.2168]
[1759957063517,0.8919,4510.0,4509.9,0.7369]
[1759957065012,0.8919,4510.0,4509.9,0.4243]
[1759957065213,0.8919,4510.0,4509.9,0.7369]
[1759957065511,0.7673,4510.0,4509.9,0.7369]
[1759957066311,0.1325,4510.5,4510.0,0.71162]
[1759957066511,0.97018,4510.5,4510.4,0.2121]
[1759957066711,1.19218,4510.5,4510.4,0.2121]
[1759957066919,1.1687,4510.3,4510.2,0.2121]
[1759957068718,1.1687,4510.3,4510.2,0.7322]
[1759957068918,1.3907,4510.3,4510.2,0.7322]
[1759957069113,1.3907,4510.3,4510.2,0.4196]
[1759957069311,0.97243,4510.0,4509.9,0.92374]
[1759957069511,1.30343,4510.0,4509.9,1.13124]
[1759957070015,0.9044,4510.0,4509.9,1.13124]
[1759957070317,1.30343,4510.0,4509.9,1.13124]
[1759957071111,1.16875,4509.7,4509.6,3.94]
[1759957071507,1.16875,4509.7,4509.5,1.59383559]
[1759957071508,0.39906,4509.6,4509.5,1.59383559]
[1759957071719,1.16876,4509.6,4509.5,0.2121]
[1759957074013,0.39907,4509.5,4509.4,0.00268537]
[1759957074219,1.30347,4509.5,4509.4,0.00268537]
[1759957074518,1.30347,4509.5,4509.4,0.21478537]
[1759957074713,1.30347,4509.5,4509.4,0.52738537]
[1759957076720,1.30347,4509.5,4509.4,0.21478537]
[1759957077110,1.30347,4509.5,4509.4,0.52738537]
[1759957077517,6.30347,4509.5,4509.4,0.00268537]
[1759957077723,9.43154048,4509.5,4509.4,0.00268537]
[1759957088235,4.20954048,4509.5,4509.4,0.21478537]
[1759957088430,4.43154048,4509.5,4509.4,0.73488537]
[1759957088630,1.52547,4509.5,4509.4,0.73488537]
[1759957088834,1.52547,4509.5,4509.4,0.42228537]
[1759957090139,1.52547,4509.5,4509.4,0.21478537]
[1759957095139,1.52547,4509.5,4509.4,0.00268537]
[1759957095342,4.34674041,4509.5,4509.4,0.00268537]
[1759957101742,4.83154292,4509.5,4509.4,0.00268537]
[1759957102137,1.17865,4508.6,4508.5,1.80373559]
[1759957102443,0.9154,4508.5,4508.4,0.2099]
[1759957102941,0.9154,4508.5,4508.3,1.59383559]
[1759957102942,1.17867,4508.4,4508.3,1.59383559]
[1759957103238,1.4035652,4508.4,4508.3,1.8062354]
[1759957103743,1.4035652,4508.4,4508.3,1.5963354]
[1759957103938,1.4035652,4508.4,4508.3,0.21239981]
[1759957104134,1.4035652,4508.4,4508.3,0.00249981]
[1759957104336,1.4035652,4508.4,4508.3,0.21239981]
[1759957105040,1.4035652,4508.4,4508.3,0.00249981]
[1759957105041,1.0043952,4508.4,4508.3,0.00249981]
[1759957105337,2.03296503,4508.4,4508.3,0.00249981]
[1759957105733,4.98302408,4508.4,4508.3,0.00249981]
[1759957105931,5.46765332,4508.4,4508.3,0.00249981]
[1759957106133,4.98302408,4508.4,4508.3,0.00249981]
[1759957106333,5.4673425,4508.4,4508.3,0.00249981]
[1759957107145,4.98302408,4508.4,4508.3,0.00249981]
[1759957111137,3.73145425,4508.4,4508.3,0.42049981]
[1759957111333,0.7813952,4508.4,4508.3,0.75169981]
[1759957111542,1.0043952,4508.4,4508.3,0.75169981]
[1759957112237,0.7813952,4508.4,4508.3,0.75169981]
[1759957112445,1.0043952,4508.4,4508.3,0.75169981]
[1759957117038,1.0043952,4508.4,4508.3,0.42049981]
[1759957117442,4.97093523,4508.4,4508.3,0.00249981]
[1759957120246,5.37010523,4508.4,4508.3,0.00249981]
[1759957125839,1.299,4508.0,4507.9,0.02218352]
[1759957126043,5.75836983,4508.0,4507.9,0.02218352]
[1759957126245,8.61220259,4508.0,4507.9,0.02218352]
[1759957127045,8.61220259,4508.0,4507.9,0.02480387]
[1759957127650,9.09764384,4508.0,4507.9,0.02480387]
[1759957128451,0.552,4506.7,4506.6,3.9601]
[1759957128747,0.7757,4506.7,4506.6,3.9601]
[1759957129143,0.7757,4506.7,4506.6,4.35943]
[1759957129450,0.9987,4506.9,4506.8,1.15161]
[1759957129643,0.9987,4506.9,4506.8,0.7523]
[1759957130647,0.2121,4507.1,4507.0,0.205]
[1759957130851,0.2121,4507.1,4507.0,0.4233]
[1759957131053,0.1241,4507.0,4506.8,5.0]
[1759957131349,0.8998,4507.0,4506.9,0.205]
[1759957131743,0.3399,4506.9,4506.6,3.21041328]
[1759957132044,0.7757,4506.7,4506.6,3.63371328]
[1759957132353,1.80426983,4506.7,4506.6,0.00261328]
[1759957132548,0.7757,4506.7,4506.6,0.00261328]
[1759957132849,0.7757,4506.7,4506.6,0.20761328]
[1759957133047,0.7757,4506.7,4506.6,0.75491328]
[1759957133851,0.776,4506.7,4506.6,1.78348311]
[1759957134246,0.552,4506.7,4506.6,1.78348311]
[1759957134445,0.776,4506.7,4506.6,1.78348311]
[1759957134647,0.3399,4506.7,4506.6,1.78348311]
[1759957134852,0.552,4506.7,4506.6,1.78348311]
[1759957135148,0.7757,4506.7,4506.6,0.00261328]
[1759957135347,0.552,4506.7,4506.6,0.75491328]
[1759957135752,0.552,4506.7,4506.6,1.78348311]
[1759957136250,0.7757,4506.7,4506.6,1.78348311]
[1759957136951,0.7757,4506.7,4506.6,0.20761328]
[1759957137143,0.7757,4506.7,4506.6,0.53661328]
[1759957137545,0.7757,4506.7,4506.6,0.20761328]
[1759957137751,0.7757,4506.7,4506.6,0.00261328]
[1759957138249,3.6677067,4506.7,4506.6,0.00261328]
[1759957139257,3.8927067,4506.7,4506.6,0.00261328]
[1759957139755,3.8927067,4506.7,4505.6,3.60721]
[1759957139756,0.7757,4505.7,4505.6,3.9601]
[1759957140350,0.7757,4505.7,4505.6,3.2078]
[1759957140756,0.7757,4505.7,4505.6,3.41479678]
[1759957140947,2.20367983,4505.7,4505.6,3.20979678]
[1759957141350,1.80426983,4505.7,4505.6,3.20979678]
[1759957141556,0.552,4505.7,4505.6,3.96209678]
[1759957141751,0.3399,4506.2,4506.0,0.60438]
[1759957141948,1.0007,4506.1,4506.0,0.205]
[1759957142150,0.2121,4505.7,4505.6,3.93820678]
[1759957142353,0.552,4505.7,4505.6,4.36150678]
[1759957142754,0.7757,4505.7,4505.6,3.41479678]
[1759957143152,1.0007,4505.7,4505.6,3.41479678]
[1759957143558,1.0007,4505.7,4505.6,0.00199678]
[1759957143559,2.02926983,4505.7,4505.6,0.00199678]
[1759957143756,4.9162877,4505.7,4505.6,0.00199678]
[1759957144055,3.88771787,4505.7,4505.6,0.20699678]
[1759957144257,3.66271787,4505.7,4505.6,0.00199678]
[1759957144561,3.88871787,4505.7,4505.6,0.00199678]
[1759957145160,3.88871787,4505.7,4505.6,0.20699678]
[1759957145558,3.66271787,4505.7,4505.6,0.20699678]
[1759957145752,3.88871787,4505.7,4505.6,0.20699678]
[1759957145959,3.66271787,4505.7,4505.6,0.75429678]
[1759957146254,1.0017,4505.7,4505.6,0.42529678]
[1759957146658,1.0017,4505.7,4505.6,0.00199678]
[1759957146863,0.7757,4505.7,4505.6,0.42529678]
[1759957147057,0.3399,4505.7,4505.6,0.75429678]
[1759957147258,0.552,4505.7,4505.6,0.75429678]
[1759957147658,1.0017,4505.7,4505.6,0.00199678]
[1759957148256,0.7757,4505.7,4505.6,0.20699678]
[1759957148458,1.0017,4505.7,4505.6,0.20699678]
[1759957148655,0.7757,4505.7,4505.6,0.20699678]
[1759957148857,1.0017,4505.7,4505.6,0.20699678]
[1759957149165,1.0017,4505.7,4505.6,0.73159678]
[1759957149352,0.3308,4505.9,4505.6,0.41799678]
[1759957149555,0.7443,4506.7,4506.6,0.4282]
[1759957149754,0.9703,4506.7,4506.6,0.211]
[1759957149954,0.8763,4506.5,4506.4,0.61654]
[1759957150561,1.27565,4506.5,4506.4,0.2172]
[1759957151362,1.27565,4506.5,4506.3,3.425]
[1759957151363,0.7443,4506.4,4506.3,3.425]
[1759957151664,0.9703,4506.4,4506.3,3.425]
[1759957151959,0.9703,4506.4,4506.3,3.2078]
[1759957151960,3.89766696,4506.4,4506.3,3.2078]
[1759957152165,0.7443,4505.9,4505.8,0.3994]
[1759957152363,0.9703,4505.9,4505.8,0.6166]
[1759957152864,0.9703,4505.9,4505.8,1.1412]
[1759957153065,0.9703,4505.9,4505.8,0.8276]
[1759957155466,0.9703,4505.9,4505.8,1.1412]
[1759957155867,0.9703,4505.9,4505.8,0.6166]
[1759957158161,0.9703,4505.9,4505.6,0.00199678]
[1759957158362,5.14393867,4505.7,4505.6,0.00199678]
[1759957158770,8.02391205,4505.7,4505.6,0.00199678]
[1759957164267,0.53152,4504.5,4504.3,4.80163559]
[1759957164471,0.53152,4504.5,4503.9,2.29010026]
[1759957164472,0.8763,4504.0,4503.9,1.14137]
[1759957164672,0.8763,4504.0,4503.9,0.2172]
[1759957164872,0.8763,4504.0,4503.9,0.4282]
[1759957165072,1.14387,4503.9,4503.8,3.2078]
[1759957165269,1.37286643,4503.9,4503.8,0.00180306]
[1759957165472,0.132,4503.0,4502.8,3.2078]
[1759957165673,0.5357,4503.1,4503.0,0.4282]
[1759957165870,0.4135,4502.9,4502.8,3.2078]
[1759957166069,0.7443,4502.9,4502.8,0.7418]
[1759957166266,0.7443,4502.9,4502.8,0.2172]
[1759957166470,6.86175681,4502.9,4502.8,0.00245774]
[1759957166869,0.3997,4502.4,4502.3,3.2078]
[1759957167169,0.3997,4502.4,4502.3,3.636]
[1759957167170,0.9733,4502.4,4502.3,3.636]
[1759957167368,0.9733,4502.4,4502.3,3.2078]
[1759957167571,3.83640964,4502.4,4502.3,3.2078]
[1759957168077,3.83640964,4502.4,4502.3,3.42703893]
[1759957168276,3.60740964,4502.4,4502.3,3.42703893]
[1759957168575,3.60740964,4502.4,4502.3,3.20983893]
[1759957168778,3.83640964,4502.4,4502.3,3.42703893]
[1759957168977,3.83640964,4502.4,4502.3,3.20983893]
[1759957170069,3.83640964,4502.4,4502.3,3.42703893]
[1759957170674,3.60740964,4502.4,4502.3,3.82674893]
[1759957170877,3.83640964,4502.4,4502.3,3.82674893]
[1759957171079,0.7443,4502.4,4502.3,4.35134893]
[1759957171376,0.9733,4502.4,4502.3,4.35134893]
[1759957171574,0.7443,4502.4,4502.3,4.35134893]
[1759957171771,0.5357,4502.4,4502.3,4.35134893]
[1759957173068,0.7443,4503.4,4503.3,0.2172]
[1759957173270,0.7443,4503.4,4503.3,0.7418]
[1759957173471,0.7647,4503.4,4503.3,0.7418]
[1759957173775,0.74629643,4503.9,4503.8,0.2172]
[1759957173968,0.97529643,4503.9,4503.8,0.2172]
[1759957174166,3.58862384,4503.9,4503.8,0.2172]
[1759957174476,4.21719384,4503.9,4503.5,0.3996]
[1759957174670,3.98819384,4503.9,4503.5,0.3996]
[1759957174869,0.7443,4503.6,4503.5,1.1414]
[1759957175777,0.53769643,4503.9,4503.8,1.14138]
[1759957176179,0.74629643,4503.9,4503.8,1.14138]
[1759957176678,0.3308,4503.8,4503.5,4.39963867]
[1759957176871,0.4135,4503.7,4503.6,0.39959]
[1759957177066,0.7443,4503.7,4503.6,0.39959]
[1759957179276,0.5357,4503.7,4503.6,0.39959]
[1759957179475,0.3308,4503.7,4503.6,5.39959]
[1759957179683,0.3308,4503.7,4503.6,5.62859]
[1759957180275,0.5582,4503.7,4503.6,5.62859]
[1759957180475,0.3308,4503.7,4503.6,5.62859]
[1759957181175,0.31629643,4503.9,4503.8,0.39958]
[1759957181383,0.31629643,4503.9,4503.8,1.59141867]
[1759957181576,0.00199643,4503.9,4503.8,6.59141867]
[1759957182470,0.00199643,4503.9,4503.8,1.59141867]
[1759957184482,0.33809643,4503.9,4503.8,1.59141867]
[1759957184984,0.00199643,4503.9,4503.8,1.59141867]
[1759957185184,0.33809643,4503.9,4503.8,1.59141867]
[1759957185786,0.33809643,4503.9,4503.8,1.82041867]
[1759957185985,0.00199643,4503.9,4503.8,1.82041867]
[1759957186587,0.33809643,4503.9,4503.8,0.62858]
[1759957187486,0.33809643,4503.9,4503.8,0.39958]
[1759957187683,0.77349643,4503.9,4503.8,0.39958]
[1759957187881,0.77349643,4503.9,4503.8,0.62858]
[1759957188380,0.77349643,4503.9,4503.8,0.39958]
[1759957188581,0.77349643,4503.9,4503.8,0.62758]
[1759957188779,0.77349643,4503.9,4503.5,3.2078]
[1759957188982,0.77349643,4503.9,4503.8,0.39958]
[1759957189783,0.77349643,4503.9,4503.6,0.228]
[1759957190682,0.7715,4503.8,4503.7,0.228]
[1759957191586,0.5452,4503.8,4503.7,0.228]
[1759957192093,0.7715,4503.8,4503.7,0.228]
[1759957195383,0.3361,4503.8,4503.5,4.3977072]
[1759957195588,0.3361,4503.8,4503.7,0.39958]
[1759957196984,3.3419,4507.0,4505.9,0.4418]
[1759957197188,0.4354,4507.3,4507.2,0.7534]
[1759957197396,0.83463,4507.3,4507.0,0.228]
[1759957197589,3.76883533,4507.3,4507.0,0.228]
[1759957197894,3.37128655,4507.3,4507.0,0.23009736]
[1759957198189,3.77051655,4507.3,4507.0,0.23009736]
[1759957198392,0.4354,4507.1,4507.0,0.23009736]
[1759957198588,1.62723867,4507.1,4507.0,0.00209736]
[1759957198787,3.36905683,4507.1,4507.0,0.00209736]
[1759957198993,3.70515683,4507.1,4507.0,0.00209736]
[1759957199794,6.91295683,4507.1,4507.0,0.00209736]
[1759957200094,6.91295683,4507.1,4505.8,4.40073466]
[1759957200095,0.3361,4506.0,4505.8,4.40073466]
[1759957200293,0.7715,4506.0,4505.9,0.7597]
[1759957200598,1.17084,4506.0,4505.9,0.7597]
[1759957200997,0.9056,4506.0,4505.9,0.22222961]
[1759957201301,0.9056,4506.0,4505.9,0.45022961]
[1759957201788,8.84600735,4506.0,4505.9,0.00212961]
[1759957202195,12.05380735,4506.0,4505.9,0.00212961]
[1759957202791,8.84600735,4506.0,4505.9,0.00212961]
[1759957202987,8.84600735,4506.0,4505.9,0.22222961]
[1759957203194,0.73542,4506.4,4505.9,4.36267961]
[1759957203393,0.73542,4506.4,4506.3,0.7534]
[1759957203394,0.7715,4506.4,4506.3,0.7534]
[1759957203697,3.71770029,4506.4,4506.3,0.7534]
[1759957203895,0.4354,4506.4,4506.3,0.7534]
[1759957204102,0.2091,4506.4,4506.3,0.7534]
[1759957204290,0.4354,4506.4,4506.3,0.7534]
[1759957204595,0.7715,4506.2,4506.1,0.5317]
[1759957204790,0.7715,4506.2,4506.1,0.2201]
[1759957204994,0.7715,4506.2,4506.1,0.7597]
[1759957205197,0.7715,4506.2,4506.1,0.9814]
[1759957205801,0.7715,4506.2,3274.0,0.268]
[1759957205802,7.85042423,4506.2,4505.1,0.3116]
[1759957205995,0.39941,4505.3,4505.1,0.7534]
[1759957206195,3.2078,4505.4,4505.2,0.5317]
[1759957206499,3.6072,4505.4,4505.3,0.3116]
[1759957206800,6.49433916,4505.4,4505.3,0.31365354]
[1759957207798,2.88713916,4505.4,4505.3,0.75545354]
[1759957208199,3.23139838,4505.5,4505.3,0.44385354]
[1759957208398,0.39939,4505.5,4505.4,0.7534]
[1759957208696,3.23139838,4505.5,4505.4,0.7534]
[1759957209593,3.23139838,4505.5,4505.4,0.3116]
[1759957209995,3.23139838,4505.5,4505.4,0.739]
[1759957210299,3.23139838,4505.5,4505.4,0.5291]
[1759957210699,3.23139838,4505.5,4505.4,0.739]
[1759957210898,2.83200838,4505.5,4505.4,0.739]
[1759957211800,0.39938,4505.6,4505.5,0.8973]
[1759957212595,4.2061,4506.3,4506.1,0.5527]
[1759957212596,0.39932,4506.2,4506.1,0.5527]
[1759957213101,3.3277991,4506.2,4506.1,0.5527]
[1759957213704,2.9284791,4506.2,4506.1,0.5527]
[1759957214200,2.9284791,4506.2,4506.1,0.7626]
[1759957217697,3.2078,4506.3,4506.1,1.16193]
[1759957217899,0.39925,4507.1,4507.0,0.6874]
[1759957218296,3.30792195,4507.1,4507.0,0.6874]
[1759957218492,3.30792195,4507.1,4507.0,0.8973]
[1759957219902,2.90867195,4507.1,4507.0,0.8973]
[1759957221593,0.39924,4507.2,4507.0,0.8973]
[1759957221798,0.39924,4507.2,4507.1,0.7626]
[1759957222000,0.39924,4507.2,4507.1,0.6626]
[1759957222408,0.00168122,4507.3,4507.1,0.4274]
[1759957222702,0.00168122,4507.3,4507.1,0.82664]
[1759957223404,0.00168122,4507.3,4507.2,3.6352]
[1759957224002,0.00168122,4507.3,4507.2,3.9704]
[1759957224399,0.39919,4507.7,4507.6,0.7626]
[1759957224600,3.2078,4508.5,4508.1,0.3352]
[1759957224802,3.60693,4508.5,4508.1,0.2175]
[1759957225108,2.94630497,4508.3,4508.2,0.5527]
[1759957225307,0.00283702,4508.3,4508.2,0.5527]
[1759957225502,0.00283702,4508.3,4508.2,0.7626]
[1759957226307,0.00283702,4508.3,4508.2,0.9906]
[1759957226902,0.00283702,4508.3,4508.2,5.9906]
[1759957227497,3.2078,4509.1,4509.0,0.8973]
[1759957228412,3.20991826,4509.1,4509.0,0.8994281]
[1759957229102,0.39896,4510.3,4510.2,0.3352]
[1759957229307,3.55384486,4510.7,4510.0,0.1347]
[1759957229308,0.39898,4510.1,4510.0,0.1347]
[1759957229505,7.16062486,4510.1,4510.0,0.1347]
[1759957229705,10.0188005,4510.1,4510.0,0.1347]
[1759957230213,10.02159693,4510.1,4510.0,0.4699]
[1759957232008,6.46775207,4510.1,4510.0,0.4699]
[1759957232913,6.46775207,4510.1,4510.0,0.6874]
[1759957233113,6.46775207,4510.1,4510.0,0.4699]
[1759957235016,6.46775207,4510.1,4510.0,0.6874]
[1759957235215,3.25995207,4510.1,4510.0,0.6874]
[1759957236209,2.86097207,4510.1,4510.0,0.8973]
[1759957236713,0.00279643,4510.1,4510.0,0.8973]
[1759957237910,0.00279643,4510.1,4510.0,0.6874]
[1759957238110,0.00279643,4510.1,4510.0,0.8973]
[1759957238317,3.06555643,4510.8,4510.6,0.2175]
[1759957238515,3.46447643,4510.8,4510.7,0.3352]
[1759957238913,6.3399931,4510.8,4510.7,0.3352]
[1759957239314,6.34176352,4510.8,4510.7,0.3352]
[1759957241521,6.34176352,4510.8,4510.7,0.5527]
[1759957242115,6.34176352,4510.8,4510.7,0.3352]
[1759957242915,6.34176352,4510.8,4510.7,0.7776]
[1759957243221,6.11376352,4510.8,4510.7,0.7776]
[1759957244524,3.23824685,4510.8,4510.7,0.7776]
[1759957246216,3.23824685,4510.8,4510.7,0.5584]
[1759957246624,3.23824685,4510.8,4510.7,0.7845]
[1759957247927,4.26626332,4510.8,4510.7,0.7845]
[1759957252624,4.26626332,4510.8,4510.7,0.3352]
[1759957252816,8.1650612,4510.8,4510.7,0.3352]
[1759957253219,7.13704473,4510.8,4510.7,0.3352]
[1759957254415,7.36404473,4510.8,4510.7,0.3352]
[1759957255522,7.82501115,4510.8,4510.7,0.3352]
[1759957256220,0.46273684,4510.8,4510.7,0.7845]
[1759957256420,0.40069042,4510.8,4510.7,0.7845]
[1759957256721,0.00177042,4510.8,4510.7,0.7845]
[1759957258728,0.54097042,4510.8,4510.7,0.4493]
[1759957259619,0.00177042,4510.8,4510.7,0.4493]
[1759957259824,0.74917042,4510.8,4510.7,0.2232]
[1759957260032,0.74917042,4510.8,4510.5,0.3555]
[1759957260033,0.4285,4510.6,4510.5,0.8048]
[1759957260626,0.4285,4510.6,4510.5,1.146]
[1759957262727,2.17435647,4510.6,4510.5,0.5644]
[1759957262928,1.27824,4510.5,4510.4,3.2078]
[1759957263227,1.27824,4510.5,4510.2,0.7914]
[1759957263228,1.14636,4510.3,4510.2,0.7914]
[1759957263428,1.14636,4510.3,4510.2,1.0175]
[1759957263635,0.7474,4510.3,4510.2,1.0175]
[1759957264033,1.14636,4510.3,4510.2,0.7905]
[1759957264233,0.399,4509.9,4509.8,4.74193466]
[1759957264441,1.1464,4509.9,4509.8,3.9992]
[1759957264935,1.1464,4509.9,4509.8,4.2253]
[1759957265936,0.7474,4509.9,4509.8,5.41823466]
[1759957267636,0.4285,4509.9,4509.8,5.41823466]
[1759957267832,0.8275,4509.9,4509.8,5.41823466]
[1759957268435,0.8275,4509.9,4509.8,4.2253]
[1759957268837,1.1623,4509.9,4509.8,4.2253]
[1759957269140,1.1623,4509.9,4509.8,5.4210756]
[1759957269328,1.1623,4509.9,4509.8,4.2253]
[1759957270831,0.7633,4509.9,4509.8,4.2253]
[1759957271334,0.7633,4509.9,4509.8,1.0175]
[1759957271737,1.16403,4510.7,4510.6,0.7719]
[1759957272037,1.16407,4510.3,4510.2,0.5544]
[1759957272536,1.16407,4510.3,4510.2,0.7814]
[1759957272836,1.16407,4510.3,4510.2,0.5544]
[1759957273142,1.16406,4510.3,4510.2,0.7814]
[1759957273335,0.206,4510.3,4510.2,0.9989]
[1759957273533,1.02801647,4510.7,4510.6,0.7719]
[1759957273534,1.16403,4510.7,4510.6,0.7719]
[1759957273740,1.62610182,4510.7,4510.6,0.7719]
[1759957273941,4.46731901,4510.7,4510.6,0.7719]
[1759957274330,0.46207182,4510.7,4510.6,0.7719]
[1759957274737,2.25518829,4510.7,4510.5,0.227]
[1759957274938,1.16404,4510.6,4510.5,0.227]
[1759957275135,1.16404,4510.6,4510.5,0.2209]
[1759957275441,1.16404,4510.6,4510.5,0.7814]
[1759957276137,1.16404,4510.6,4510.5,0.9989]
[1759957276441,1.16404,4510.6,4510.5,0.3335]
[1759957276642,1.16404,4510.6,4510.5,0.7814]
[1759957277843,1.16404,4510.6,4510.5,0.9989]
[1759957278244,0.39895,4510.4,4510.3,1.19609068]
[1759957278452,1.16405,4510.4,4510.3,0.5605]
[1759957278639,1.16405,4510.4,4510.3,1.97749068]
[1759957279140,1.16405,4510.4,4510.3,2.19499068]
[1759957279639,3.2088,4510.7,4510.5,0.1294]
[1759957279946,0.60593,4510.7,4510.6,0.9989]
[1759957280447,0.94073,4510.7,4510.6,0.9989]
[1759957281643,1.16503,4510.7,4510.6,0.9989]
[1759957282943,0.4313,4510.7,4510.6,0.9989]
[1759957283141,0.60593,4510.7,4510.6,0.9989]
[1759957283947,0.94073,4510.7,4510.6,0.9989]